fUSD/lending_fUSD_20240412
["ID","MTS","AMOUNT","RATE_DAILY","PERIOD"]
[322250418,1712913073683,-914.69,0.0003041,2]
[322250419,1712913073694,-925.11,0.0003041,2]
[322250420,1712913073704,-1311.53,0.0003041,2]
[322250421,1712913073714,-888.39,0.0003041,2]
[322250422,1712913073724,-500.0,0.0003041,2]
[322250423,1712913073734,-742.51,0.0003041,2]
[322250424,1712913073743,-500.0,0.0003041,2]
[322250425,1712913073753,-1305.4,0.0003041,2]
[322250426,1712913073763,-1858.46,0.0003041,2]
[322250427,1712913073773,-844.56,0.0003041,2]
[322250428,1712913073782,-500.0,0.0003041,2]
[322250429,1712913073792,-510.32,0.0003041,2]
[322250430,1712913073801,-920.2,0.0003041,2]
[322250431,1712913073810,-1490.11,0.0003041,2]
[322250432,1712913073820,-662.41,0.0003041,2]
[322250433,1712913073829,-500.0,0.0003041,2]
[322250434,1712913073839,-663.55,0.0003041,2]
[322250435,1712913073849,-500.0,0.0003041,2]
[322250436,1712913073858,-4281.14,0.0003041,2]
[322250437,1712913073867,-500.0,0.0003041,2]
[322250438,1712913073877,-500.0,0.0003041,2]
[322250439,1712913073886,-358.597281,0.00030411,14]
[322250440,1712913073895,-21186.43478612,0.00030678,2]
[322250441,1712913073904,-1987.67716642,0.00030678,2]
[322250442,1712913073913,-500.0,0.00030684,2]
[322250443,1712913073923,-151.5,0.00030684,2]
[322250444,1712913073931,-500.0,0.00030684,2]
[322250445,1712913073940,-500.0,0.00030684,2]
[322250446,1712913073950,-500.0,0.00030684,2]
[322250447,1712913073959,-500.0,0.00030684,2]
[322250448,1712913073968,-500.0,0.00030684,2]
[322250449,1712913073977,-500.0,0.00030684,2]
[322250450,1712913073987,-500.0,0.00030684,2]
[322250451,1712913073996,-500.0,0.00030684,2]
[322250452,1712913074005,-448.2,0.00030684,2]
[322250453,1712913074014,-500.0,0.00030684,2]
[322250454,1712913074023,-500.0,0.00030684,2]
[322250455,1712913074032,-522.3,0.00030684,2]
[322250456,1712913074042,-500.0,0.00030684,2]
[322250457,1712913074051,-500.0,0.00030684,2]
[322250458,1712913074060,-500.0,0.00030684,2]
[322250459,1712913074069,-500.0,0.00030684,2]
[322250460,1712913074079,-500.0,0.00030684,2]
[322250461,1712913074089,-500.0,0.00030684,2]
[322250462,1712913074098,-500.0,0.00030684,2]
[322250463,1712913074107,-500.0,0.00030684,2]
[322250464,1712913074117,-500.0,0.00030684,2]
[322250465,1712913074126,-595.67,0.00030684,2]
[322250466,1712913074136,-500.0,0.00030684,2]
[322250467,1712913074145,-554.42,0.00030684,2]
[322250468,1712913074154,-500.0,0.00030684,2]
[322250469,1712913074164,-500.0,0.00030684,2]
[322250470,1712913074173,-500.0,0.00030684,2]
[322250471,1712913074182,-500.0,0.00030684,2]
[322250472,1712913074191,-1693.89,0.00030684,2]
[322250473,1712913074200,-1344.19,0.00030684,2]
[322250474,1712913074209,-279.95656162,0.00030684,2]
[322250475,1712913074218,-500.0,0.00030684,2]
[322250476,1712913074228,-557.5,0.00030684,2]
[322250477,1712913074236,-500.0,0.00030684,2]
[322250478,1712913074245,-1426.98,0.00030684,2]
[322250479,1712913074254,-500.0,0.00030684,2]
[322250480,1712913074263,-500.0,0.00030684,2]
[322250481,1712913074272,-500.0,0.00030684,2]
[322250482,1712913074282,-613.24,0.00030684,2]
[322250483,1712913074291,-4902.69,0.00030684,2]
[322250484,1712913074300,-589.66,0.00030684,2]
[322250485,1712913074310,-555.77272944,0.00030684,2]
[322250486,1712913074319,-500.0,0.00030684,2]
[322250487,1712913074329,-500.0,0.00030684,2]
[322250488,1712913074339,-500.0,0.00030684,2]
[322250489,1712913074348,-783.37,0.00030684,2]
[322250490,1712913074358,-500.0,0.00030684,2]
[322250491,1712913074367,-500.0,0.00030684,2]
[322250492,1712913074377,-500.0,0.00030684,2]
[322250493,1712913074386,-500.0,0.00030684,2]
[322250494,1712913074395,-500.0,0.00030684,2]
[322250495,1712913074406,-1116.46,0.00030684,2]
[322250496,1712913074415,-500.0,0.00030684,2]
[322250497,1712913074424,-500.0,0.00030684,2]
[322250498,1712913074434,-942.27,0.00030684,2]
[322250499,1712913074444,-500.0,0.00030684,2]
[322250500,1712913074454,-500.0,0.00030684,2]
[322250501,1712913074463,-1102.09,0.00030684,2]
[322250502,1712913074474,-724.59,0.00030684,2]
[322250503,1712913074483,-500.0,0.00030684,2]
[322250504,1712913074493,-710.01,0.00030684,2]
[322250505,1712913074503,-6220.28,0.00030684,2]
[322250506,1712913074512,-500.0,0.00030684,2]
[322250507,1712913074522,-500.0,0.00030684,2]
[322250508,1712913074532,-500.0,0.00030684,2]
[322250509,1712913074542,-500.0,0.00030684,2]
[322250510,1712913074551,-652.05,0.00030684,2]
[322250511,1712913074562,-500.0,0.00030684,2]
[322250512,1712913074572,-500.0,0.00030684,2]
[322250513,1712913074582,-2583.5,0.00030684,2]
[322250514,1712913074592,-1053.91,0.00030684,2]
[322250515,1712913074602,-2164.81,0.00030684,2]
[322250516,1712913074614,-500.0,0.00030684,2]
[322250517,1712913074624,-500.0,0.00030684,2]
[322250518,1712913074635,-500.0,0.00030684,2]
[322250519,1712913074645,-500.0,0.00030684,2]
[322250520,1712913074654,-1027.51,0.00030684,2]
[322250521,1712913074663,-500.0,0.00030684,2]
[322250522,1712913074672,-2080.21,0.00030684,2]
[322250523,1712913074683,-1105.7,0.00030684,2]
[322250524,1712913074693,-1530.77,0.00030684,2]
[322250525,1712913074702,-1722.55,0.00030684,2]
[322250526,1712913074712,-583.55,0.00030684,2]
[322250527,1712913074721,-500.0,0.00030684,2]
[322250528,1712913074731,-500.0,0.00030684,2]
[322250529,1712913074741,-1217.73,0.00030684,2]
[322250530,1712913074750,-11130.2,0.00030684,2]
[322250531,1712913074760,-821.08,0.00030684,2]
[322250532,1712913074770,-500.0,0.00030684,2]
[322250533,1712913074779,-500.0,0.00030684,2]
[322250534,1712913074788,-500.0,0.00030684,2]
[322250535,1712913074797,-1938.7,0.00030684,2]
[322250536,1712913074807,-500.0,0.00030684,2]
[322250537,1712913074816,-500.0,0.00030684,2]
[322250538,1712913074826,-930.87,0.00030684,2]
[322250539,1712913074837,-2176.5,0.00030684,2]
[322250540,1712913074846,-500.0,0.00030684,2]
[322250541,1712913074855,-500.0,0.00030684,2]
[322250542,1712913074865,-551.46,0.00030684,2]
[322250543,1712913074874,-2252.47,0.00030684,2]
[322250544,1712913074884,-500.0,0.00030684,2]
[322250545,1712913074897,-500.0,0.00030684,2]
[322250546,1712913074908,-500.0,0.00030684,2]
[322250547,1712913074919,-1111.76,0.00030684,2]
[322250548,1712913074928,-621.09,0.00030684,2]
[322250549,1712913074938,-779.64,0.00030684,2]
[322250550,1712913074949,-1124.57,0.00030684,2]
[322250551,1712913074959,-914.69,0.00030684,2]
[322250552,1712913074971,-925.11,0.00030684,2]
[322250553,1712913074982,-1311.53,0.00030684,2]
[322250554,1712913074995,-888.39,0.00030684,2]
[322250555,1712913075005,-500.0,0.00030684,2]
[322250556,1712913075015,-742.51,0.00030684,2]
[322250557,1712913075025,-500.0,0.00030684,2]
[322250558,1712913075035,-1305.4,0.00030684,2]
[322250559,1712913075176,-1858.46,0.00030684,2]
[322250560,1712913075209,-844.56,0.00030684,2]
[322250561,1712913075219,-500.0,0.00030684,2]
[322250562,1712913075229,-510.32,0.00030684,2]
[322250563,1712913075238,-920.2,0.00030684,2]
[322250564,1712913075247,-1490.11,0.00030684,2]
[322250565,1712913075257,-662.41,0.00030684,2]
[322250566,1712913075266,-500.0,0.00030684,2]
[322250567,1712913075274,-663.55,0.00030684,2]
[322250568,1712913075284,-500.0,0.00030684,2]
[322250569,1712913075293,-4281.14,0.00030684,2]
[322250570,1712913075302,-500.0,0.00030684,2]
[322250571,1712913075312,-500.0,0.00030684,2]
[322250572,1712913075321,-154.03278192,0.00030759,7]
[322250573,1712913075330,-153.82382248,0.00030783,7]
[322250574,1712913075341,-380.0,0.00030858,2]
[322250575,1712913075350,-380.0,0.00030865,2]
[322250576,1712913075359,-380.0,0.00030872,2]
[322250577,1712913075368,-153.32512065,0.00030872,7]
[322250578,1712913075378,-155.75305263,0.00030873,7]
[322250579,1712913075388,-313.92,0.00030874,2]
[322250580,1712913075397,-379.99,0.00030879,2]
[322250581,1712913075406,-380.0,0.0003089,2]
[322250582,1712913075416,-150.0,0.000309,2]
[322250583,1712913075425,-500.0,0.00030958,2]
[322250584,1712913075435,-500.0,0.00030958,2]
[322250585,1712913075445,-500.0,0.00030958,2]
[322250586,1712913075455,-500.0,0.00030958,2]
[322250587,1712913075465,-500.0,0.00030958,2]
[322250588,1712913075475,-500.0,0.00030958,2]
[322250589,1712913075485,-500.0,0.00030958,2]
[322250590,1712913075496,-500.0,0.00030958,2]
[322250591,1712913075506,-500.0,0.00030958,2]
[322250592,1712913075516,-500.0,0.00030958,2]
[322250593,1712913075526,-522.3,0.00030958,2]
[322250594,1712913075535,-500.0,0.00030958,2]
[322250595,1712913075545,-636.48,0.00030958,2]
[322250596,1712913075555,-500.0,0.00030958,2]
[322250597,1712913075564,-500.0,0.00030958,2]
[322250598,1712913075574,-500.0,0.00030958,2]
[322250599,1712913075585,-500.0,0.00030958,2]
[322250600,1712913075597,-511.49234615,0.00030958,2]
[322250601,1712913075608,-500.0,0.00030958,2]
[322250602,1712913075618,-595.67,0.00030958,2]
[322250603,1712913075627,-500.0,0.00030958,2]
[322250604,1712913075636,-554.42,0.00030958,2]
[322250605,1712913075647,-500.0,0.00030958,2]
[322250606,1712913075656,-500.0,0.00030958,2]
[322250607,1712913075666,-500.0,0.00030958,2]
[322250608,1712913075675,-464.70995379,0.00030958,2]
[322250609,1712913075685,-1693.89,0.00030958,2]
[322250610,1712913075694,-1344.19,0.00030958,2]
[322250611,1712913075703,-500.0,0.00030958,2]
[322250612,1712913075713,-557.5,0.00030958,2]
[322250613,1712913075722,-500.0,0.00030958,2]
[322250614,1712913075731,-1426.98,0.00030958,2]
[322250615,1712913075740,-500.0,0.00030958,2]
[322250616,1712913075750,-500.0,0.00030958,2]
[322250617,1712913075760,-500.0,0.00030958,2]
[322250618,1712913075769,-613.24,0.00030958,2]
[322250619,1712913075779,-4902.69,0.00030958,2]
[322250620,1712913075788,-589.66,0.00030958,2]
[322250621,1712913075797,-500.0,0.00030958,2]
[322250622,1712913075807,-537.22255855,0.00030958,2]
[322250623,1712913075816,-500.0,0.00030958,2]
[322250624,1712913075826,-783.37,0.00030958,2]
[322250625,1712913075836,-500.0,0.00030958,2]
[322250626,1712913075845,-500.0,0.00030958,2]
[322250627,1712913075854,-500.0,0.00030958,2]
[322250628,1712913075865,-500.0,0.00030958,2]
[322250629,1712913075875,-500.0,0.00030958,2]
[322250630,1712913075885,-1116.46,0.00030958,2]
[322250631,1712913075896,-500.0,0.00030958,2]
[322250632,1712913075906,-500.0,0.00030958,2]
[322250633,1712913075916,-942.27,0.00030958,2]
[322250634,1712913075926,-500.0,0.00030958,2]
[322250635,1712913075936,-500.0,0.00030958,2]
[322250636,1712913075946,-1102.09,0.00030958,2]
[322250637,1712913075956,-724.59,0.00030958,2]
[322250638,1712913075967,-381.31280208,0.00030958,2]
[322250639,1712913075979,-710.01,0.00030958,2]
[322250640,1712913075991,-6220.28,0.00030958,2]
[322250641,1712913076001,-289.00197489,0.00030958,2]
[322250642,1712913076012,-500.0,0.00030958,2]
[322250643,1712913076022,-500.0,0.00030958,2]
[322250644,1712913076031,-500.0,0.00030958,2]
[322250645,1712913076041,-652.05,0.00030958,2]
[322250646,1712913076052,-500.0,0.00030958,2]
[322250647,1712913076063,-500.0,0.00030958,2]
[322250648,1712913076073,-2583.5,0.00030958,2]
[322250649,1712913076084,-1053.91,0.00030958,2]
[322250650,1712913076095,-2164.81,0.00030958,2]
[322250651,1712913076105,-500.0,0.00030958,2]
[322250652,1712913076116,-500.0,0.00030958,2]
[322250653,1712913076126,-500.0,0.00030958,2]
[322250654,1712913076135,-500.0,0.00030958,2]
[322250655,1712913076146,-1027.51,0.00030958,2]
[322250656,1712913076158,-500.0,0.00030958,2]
[322250657,1712913076169,-2080.21,0.00030958,2]
[322250658,1712913076178,-1105.7,0.00030958,2]
[322250659,1712913076189,-1530.77,0.00030958,2]
[322250660,1712913076199,-1722.55,0.00030958,2]
[322250661,1712913076208,-583.55,0.00030958,2]
[322250662,1712913076218,-500.0,0.00030958,2]
[322250663,1712913076229,-500.0,0.00030958,2]
[322250664,1712913076238,-1217.73,0.00030958,2]
[322250665,1712913076248,-11130.2,0.00030958,2]
[322250666,1712913076258,-821.08,0.00030958,2]
[322250667,1712913076267,-500.0,0.00030958,2]
[322250668,1712913076278,-500.0,0.00030958,2]
[322250669,1712913076287,-500.0,0.00030958,2]
[322250670,1712913076298,-1938.7,0.00030958,2]
[322250671,1712913076307,-500.0,0.00030958,2]
[322250672,1712913076317,-500.0,0.00030958,2]
[322250673,1712913076328,-930.87,0.00030958,2]
[322250674,1712913076339,-2176.5,0.00030958,2]
[322250675,1712913076348,-500.0,0.00030958,2]
[322250676,1712913076358,-500.0,0.00030958,2]
[322250677,1712913076368,-551.46,0.00030958,2]
[322250678,1712913076379,-2252.47,0.00030958,2]
[322250679,1712913076389,-500.0,0.00030958,2]
[322250680,1712913076399,-500.0,0.00030958,2]
[322250681,1712913076409,-500.0,0.00030958,2]
[322250682,1712913076419,-1111.76,0.00030958,2]
[322250683,1712913076429,-621.09,0.00030958,2]
[322250684,1712913076439,-779.64,0.00030958,2]
[322250685,1712913076450,-1124.57,0.00030958,2]
[322250686,1712913076460,-914.69,0.00030958,2]
[322250687,1712913076470,-925.11,0.00030958,2]
[322250688,1712913076480,-1311.53,0.00030958,2]
[322250689,1712913076491,-888.39,0.00030958,2]
[322250690,1712913076502,-500.0,0.00030958,2]
[322250691,1712913076512,-742.51,0.00030958,2]
[322250692,1712913076521,-500.0,0.00030958,2]
[322250693,1712913076531,-1305.4,0.00030958,2]
[322250694,1712913076541,-1858.46,0.00030958,2]
[322250695,1712913076551,-500.0,0.00030958,2]
[322250696,1712913076562,-844.56,0.00030958,2]
[322250697,1712913076571,-510.32,0.00030958,2]
[322250698,1712913076582,-920.2,0.00030958,2]
[322250699,1712913076594,-1490.11,0.00030958,2]
[322250700,1712913076605,-662.41,0.00030958,2]
[322250701,1712913076618,-500.0,0.00030958,2]
[322250702,1712913076629,-663.55,0.00030958,2]
[322250703,1712913076639,-500.0,0.00030958,2]
[322250704,1712913076650,-4281.14,0.00030958,2]
[322250705,1712913076660,-247.72196204,0.00030958,2]
[322250706,1712913076669,-625.79282064,0.00030958,2]
[322250707,1712913076679,-2503.08,0.00031001,2]
[322250708,1712913076689,-5000.0,0.00031009,2]
[322250709,1712913076699,-1536.7,0.00031056,2]
[322250710,1712913076710,-4576.89,0.00031068,2]
[322250711,1712913076721,-25000.0,0.00031069,2]
[322250712,1712913076732,-156.33363119,0.0003107,7]
[322250713,1712913076741,-5000.0,0.00031098,2]
[322250714,1712913076751,-5000.0,0.00031099,2]
[322250715,1712913076760,-2502.54,0.00031104,2]
[322250716,1712913076770,-168.56,0.00031128,2]
[322250717,1712913076780,-2503.08,0.00031137,2]
[322250718,1712913076790,-5000.0,0.00031139,2]
[322250719,1712913076799,-25000.0,0.0003114,2]
[322250720,1712913076810,-2889.58,0.00031185,2]
[322250721,1712913076820,-2502.54,0.00031216,2]
[322250722,1712913076831,-5000.0,0.00031224,2]
[322250723,1712913076841,-500.0,0.00031232,2]
[322250724,1712913076850,-272.7,0.00031232,2]
[322250725,1712913076860,-500.0,0.00031232,2]
[322250726,1712913076870,-500.0,0.00031232,2]
[322250727,1712913076880,-500.0,0.00031232,2]
[322250728,1712913076889,-500.0,0.00031232,2]
[322250729,1712913076898,-500.0,0.00031232,2]
[322250730,1712913076907,-500.0,0.00031232,2]
[322250731,1712913076916,-500.0,0.00031232,2]
[322250732,1712913076926,-500.0,0.00031232,2]
[322250733,1712913076935,-522.3,0.00031232,2]
[322250734,1712913076945,-500.0,0.00031232,2]
[322250735,1712913076955,-500.0,0.00031232,2]
[322250736,1712913076965,-500.0,0.00031232,2]
[322250737,1712913076977,-500.0,0.00031232,2]
[322250738,1712913076988,-595.67,0.00031232,2]
[322250739,1712913076997,-500.0,0.00031232,2]
[322250740,1712913077007,-554.42,0.00031232,2]
[322250741,1712913077017,-500.0,0.00031232,2]
[322250742,1712913077028,-500.0,0.00031232,2]
[322250743,1712913077039,-500.0,0.00031232,2]
[322250744,1712913077049,-1693.89,0.00031232,2]
[322250745,1712913077059,-1344.19,0.00031232,2]
[322250746,1712913077068,-151.0,0.00031232,7]
[322250747,1712913077078,-500.0,0.00031232,2]
[322250748,1712913077088,-557.5,0.00031232,2]
[322250749,1712913077097,-500.0,0.00031232,2]
[322250750,1712913077106,-1426.98,0.00031232,2]
[322250751,1712913077116,-500.0,0.00031232,2]
[322250752,1712913077125,-500.0,0.00031232,2]
[322250753,1712913077134,-500.0,0.00031232,2]
[322250754,1712913077143,-613.24,0.00031232,2]
[322250755,1712913077153,-4902.69,0.00031232,2]
[322250756,1712913077162,-589.66,0.00031232,2]
[322250757,1712913077171,-500.0,0.00031232,2]
[322250758,1712913077181,-500.0,0.00031232,2]
[322250759,1712913077190,-783.37,0.00031232,2]
[322250760,1712913077199,-156.415468,0.00031232,7]
[322250761,1712913077208,-156.415468,0.00031232,7]
[322250762,1712913077217,-500.0,0.00031232,2]
[322250763,1712913077226,-500.0,0.00031232,2]
[322250764,1712913077236,-500.0,0.00031232,2]
[322250765,1712913077245,-500.0,0.00031232,2]
[322250766,1712913077254,-500.0,0.00031232,2]
[322250767,1712913077265,-1116.46,0.00031232,2]
[322250768,1712913077275,-500.0,0.00031232,2]
[322250769,1712913077284,-500.0,0.00031232,2]
[322250770,1712913077293,-942.27,0.00031232,2]
[322250771,1712913077302,-605.70999953,0.00031232,2]
[322250772,1712913077312,-500.0,0.00031232,2]
[322250773,1712913077321,-1102.09,0.00031232,2]
[322250774,1712913077331,-724.59,0.00031232,2]
[322250775,1712913077341,-710.01,0.00031232,2]
[322250776,1712913077351,-6220.28,0.00031232,2]
[322250777,1712913077360,-500.0,0.00031232,2]
[322250778,1712913077368,-500.0,0.00031232,2]
[322250779,1712913077377,-500.0,0.00031232,2]
[322250780,1712913077386,-652.05,0.00031232,2]
[322250781,1712913077396,-500.0,0.00031232,2]
[322250782,1712913077405,-500.0,0.00031232,2]
[322250783,1712913077414,-2583.5,0.00031232,2]
[322250784,1712913077423,-1053.91,0.00031232,2]
[322250785,1712913077433,-2164.81,0.00031232,2]
[322250786,1712913077442,-500.0,0.00031232,2]
[322250787,1712913077452,-568.24367663,0.00031232,2]
[322250788,1712913077461,-500.0,0.00031232,2]
[322250789,1712913077470,-500.0,0.00031232,2]
[322250790,1712913077479,-1027.51,0.00031232,2]
[322250791,1712913077489,-500.0,0.00031232,2]
[322250792,1712913077499,-2080.21,0.00031232,2]
[322250793,1712913077508,-1105.7,0.00031232,2]
[322250794,1712913077517,-1530.77,0.00031232,2]
[322250795,1712913077527,-1722.55,0.00031232,2]
[322250796,1712913077538,-583.55,0.00031232,2]
[322250797,1712913077547,-500.0,0.00031232,2]
[322250798,1712913077558,-500.0,0.00031232,2]
[322250799,1712913077568,-1217.73,0.00031232,2]
[322250800,1712913077578,-11130.2,0.00031232,2]
[322250801,1712913077589,-821.08,0.00031232,2]
[322250802,1712913077599,-569.79393961,0.00031232,2]
[322250803,1712913077610,-500.0,0.00031232,2]
[322250804,1712913077620,-500.0,0.00031232,2]
[322250805,1712913077674,-1938.7,0.00031232,2]
[322250806,1712913077683,-500.0,0.00031232,2]
[322250807,1712913077692,-500.0,0.00031232,2]
[322250808,1712913077703,-930.87,0.00031232,2]
[322250809,1712913077712,-2176.5,0.00031232,2]
[322250810,1712913077721,-500.0,0.00031232,2]
[322250811,1712913077731,-500.0,0.00031232,2]
[322250812,1712913077740,-551.46,0.00031232,2]
[322250813,1712913077749,-2252.47,0.00031232,2]
[322250814,1712913077759,-500.0,0.00031232,2]
[322250815,1712913077768,-500.0,0.00031232,2]
[322250816,1712913077777,-500.0,0.00031232,2]
[322250817,1712913077786,-1111.76,0.00031232,2]
[322250818,1712913077795,-621.09,0.00031232,2]
[322250819,1712913077805,-779.64,0.00031232,2]
[322250820,1712913077814,-1124.57,0.00031232,2]
[322250821,1712913077823,-914.69,0.00031232,2]
[322250822,1712913077832,-925.11,0.00031232,2]
[322250823,1712913077843,-1311.53,0.00031232,2]
[322250824,1712913077852,-888.39,0.00031232,2]
[322250825,1712913077861,-428.96,0.00031232,2]
[322250826,1712913077870,-742.51,0.00031232,2]
[322250827,1712913077878,-544.14014981,0.00031232,2]
[322250828,1712913077889,-1305.4,0.00031232,2]
[322250829,1712913077900,-1858.46,0.00031232,2]
[322250830,1712913077911,-500.0,0.00031232,2]
[322250831,1712913077921,-510.32,0.00031232,2]
[322250832,1712913077933,-844.56,0.00031232,2]
[322250833,1712913077944,-920.2,0.00031232,2]
[322250834,1712913077955,-1490.11,0.00031232,2]
[322250835,1712913077964,-662.41,0.00031232,2]
[322250836,1712913077975,-500.0,0.00031232,2]
[322250837,1712913077986,-663.55,0.00031232,2]
[322250838,1712913077996,-500.0,0.00031232,2]
[322250839,1712913078006,-4281.14,0.00031232,2]
[322250840,1712913078018,-358.597281,0.00031233,14]
[322250841,1712913078027,-5000.0,0.00031286,2]
[322250842,1712913078038,-8215.76,0.00031292,2]
[322250843,1712913078047,-5000.0,0.00031297,2]
[322250844,1712913078056,-25000.0,0.00031302,2]
[322250845,1712913078065,-1728.91,0.00031303,2]
[322250846,1712913078074,-5000.0,0.00031358,2]
[322250847,1712913078083,-2505.41,0.00031371,2]
[322250848,1712913078093,-5000.0,0.00031383,2]
[322250849,1712913078102,-5000.0,0.00031387,2]
[322250850,1712913078112,-150.0,0.000314,3]
[322250851,1712913078121,-4329.55,0.000314,2]
[322250852,1712913078131,-5000.0,0.00031409,2]
[322250853,1712913078140,-1286.04656595,0.0003142,2]
[322250854,1712913078149,-5000.0,0.00031433,2]
[322250855,1712913078158,-10000.0,0.00031434,2]
[322250856,1712913078167,-5000.0,0.00031447,2]
[322250857,1712913078177,-15437.64,0.00031447,2]
[322250858,1712913078186,-10000.0,0.00031466,2]
[322250859,1712913078195,-3285.59603356,0.00031481,2]
[322250860,1712913078204,-25000.0,0.00031484,2]
[322250861,1712913078214,-500.0,0.00031506,2]
[322250862,1712913078223,-534.5,0.00031506,2]
[322250863,1712913078232,-500.0,0.00031506,2]
[322250864,1712913078242,-500.0,0.00031506,2]
[322250865,1712913078251,-500.0,0.00031506,2]
[322250866,1712913078260,-500.0,0.00031506,2]
[322250867,1712913078269,-500.0,0.00031506,2]
[322250868,1712913078278,-649.57,0.00031506,2]
[322250869,1712913078288,-500.0,0.00031506,2]
[322250870,1712913078297,-522.3,0.00031506,2]
[322250871,1712913078305,-511.38,0.00031506,2]
[322250872,1712913078315,-500.0,0.00031506,2]
[322250873,1712913078324,-500.0,0.00031506,2]
[322250874,1712913078335,-163.6,0.00031506,2]
[322250875,1712913078346,-595.67,0.00031506,2]
[322250876,1712913078355,-554.42,0.00031506,2]
[322250877,1712913078365,-208.35,0.00031506,2]
[322250878,1712913078374,-500.0,0.00031506,2]
[322250879,1712913078383,-1693.89,0.00031506,2]
[322250880,1712913078393,-1344.19,0.00031506,2]
[322250881,1712913078402,-500.0,0.00031506,2]
[322250882,1712913078412,-557.5,0.00031506,2]
[322250883,1712913078421,-461.84742011,0.00031506,2]
[322250884,1712913078430,-1426.98,0.00031506,2]
[322250885,1712913078440,-500.0,0.00031506,2]
[322250886,1712913078449,-488.43752188,0.00031506,2]
[322250887,1712913078459,-588.52163642,0.00031506,2]
[322250888,1712913078468,-613.24,0.00031506,2]
[322250889,1712913078478,-4902.69,0.00031506,2]
[322250890,1712913078488,-589.66,0.00031506,2]
[322250891,1712913078497,-443.98151674,0.00031506,2]
[322250892,1712913078506,-500.0,0.00031506,2]
[322250893,1712913078515,-783.37,0.00031506,2]
[322250894,1712913078525,-500.0,0.00031506,2]
[322250895,1712913078535,-500.0,0.00031506,2]
[322250896,1712913078544,-500.0,0.00031506,2]
[322250897,1712913078554,-397.71807095,0.00031506,2]
[322250898,1712913078563,-500.0,0.00031506,2]
[322250899,1712913078573,-1116.46,0.00031506,2]
[322250900,1712913078583,-500.0,0.00031506,2]
[322250901,1712913078594,-500.0,0.00031506,2]
[322250902,1712913078606,-942.27,0.00031506,2]
[322250903,1712913078616,-500.0,0.00031506,2]
[322250904,1712913078625,-1102.09,0.00031506,2]
[322250905,1712913078635,-724.59,0.00031506,2]
[322250906,1712913078646,-710.01,0.00031506,2]
[322250907,1712913078656,-6220.28,0.00031506,2]
[322250908,1712913078666,-500.0,0.00031506,2]
[322250909,1712913078675,-500.0,0.00031506,2]
[322250910,1712913078687,-500.0,0.00031506,2]
[322250911,1712913078696,-652.05,0.00031506,2]
[322250912,1712913078705,-218.5382352,0.00031506,2]
[322250913,1712913078715,-500.0,0.00031506,2]
[322250914,1712913078726,-2583.5,0.00031506,2]
[322250915,1712913078736,-1053.91,0.00031506,2]
[322250916,1712913078747,-2164.81,0.00031506,2]
[322250917,1712913078757,-500.0,0.00031506,2]